bitfinex/quotes_BTCUSD_20250615
["timestamp","ask_amount","ask_price","bid_price","bid_amount"]
[1749949369858,1.37977637,105840.0,105830.0,0.55368]
[1749949370463,0.66133613,105840.0,105830.0,0.55368]
[1749949370689,0.68780979,105840.0,105830.0,0.82386028]
[1749949371058,0.67015998,105840.0,105830.0,0.81441135]
[1749949371279,0.67015999,105840.0,105830.0,0.61598]
[1749949371493,0.66071166,105840.0,105830.0,0.61598]
[1749949371703,0.66071167,105840.0,105830.0,0.61598]
[1749949371913,0.66071167,105840.0,105830.0,0.62542911]
[1749949371914,0.66071161,105840.0,105830.0,0.62542911]
[1749949372128,0.6607116,105840.0,105830.0,0.61598]
[1749949372575,0.66071159,105840.0,105830.0,0.61598]
[1749949372788,0.66071165,105840.0,105830.0,0.4]
[1749949373022,0.65188791,105840.0,105830.0,0.55368]
[1749949373277,0.66071173,105840.0,105830.0,0.55368]
[1749949373502,0.66071172,105840.0,105830.0,0.55368]
[1749949373948,0.67835932,105840.0,105830.0,0.55368]
[1749949374183,0.66953554,105840.0,105830.0,0.55368]
[1749949374406,0.67835948,105840.0,105830.0,0.55368]
[1749949374631,0.6607118,105840.0,105830.0,0.55368]
[1749949374904,0.67835959,105840.0,105830.0,0.55368]
[1749949375086,0.6783596,105840.0,105830.0,0.55368]
[1749949375291,0.66953571,105840.0,105830.0,0.55368]
[1749949375508,0.67835961,105840.0,105830.0,0.55368]
[1749949375719,0.66953571,105840.0,105830.0,0.55368]
[1749949375938,0.65188791,105840.0,105830.0,0.55368]
[1749949376165,0.66953571,105840.0,105830.0,0.55368]
[1749949376379,0.67835961,105840.0,105830.0,0.55368]
[1749949376801,0.67840587,105840.0,105830.0,0.55368]
[1749949377014,0.67618833,105840.0,105830.0,0.55368]
[1749949377241,0.66962823,105840.0,105830.0,0.55368]
[1749949377459,0.68515101,105840.0,105830.0,0.55368]
[1749949377668,0.65188791,105840.0,105830.0,0.55368]
[1749949377883,0.68515101,105840.0,105830.0,0.55368]
[1749949378096,0.67849839,105840.0,105830.0,0.55368]
[1749949378328,0.68515101,105840.0,105830.0,0.55368]
[1749949379091,0.65854053,105840.0,105830.0,0.58478]
[1749949379319,0.67849839,105840.0,105830.0,0.58478]
[1749949379544,0.68515101,105840.0,105830.0,0.58478]
[1749949380224,0.67628085,105840.0,105830.0,0.58478]
[1749949380434,0.66962823,105840.0,105830.0,0.58478]
[1749949380644,0.65854053,105840.0,105830.0,0.58478]
[1749949380870,0.67628086,105840.0,105830.0,0.58478]
[1749949381089,0.73805784,105840.0,105830.0,0.4]
[1749949381319,0.73805784,105840.0,105830.0,0.55368]
[1749949381320,0.74715123,105840.0,105830.0,0.55368]
[1749949381532,0.74715131,105840.0,105830.0,0.55368]
[1749949381741,1.13165035,105840.0,105830.0,0.55368]
[1749949381981,1.13386799,105840.0,105830.0,0.84858]
[1749949382214,1.13165043,105840.0,105830.0,0.84858]
[1749949382505,1.12277995,105840.0,105830.0,0.6949]
[1749949382719,1.13165093,105840.0,105830.0,0.84858]
[1749949382936,1.13165093,105840.0,105830.0,0.6949]
[1749949383170,1.14052168,105840.0,105830.0,0.6949]
[1749949383384,1.12278018,105840.0,105830.0,0.84858]
[1749949383599,1.13165093,105840.0,105830.0,0.84858]
[1749949383819,1.14052168,105840.0,105830.0,0.84858]
[1749949384686,1.12278018,105840.0,105830.0,0.84858]
[1749949384899,1.13165093,105840.0,105830.0,0.84858]
[1749949385085,1.14049933,105840.0,105830.0,0.84858]
[1749949385327,1.1404738,105840.0,105830.0,0.84858]
[1749949385536,1.11389986,105840.0,105830.0,0.84858]
[1749949385750,1.13383035,105840.0,105830.0,0.84858]
[1749949385968,1.13161585,105840.0,105830.0,0.84858]
[1749949386184,1.14047384,105840.0,105830.0,0.84858]
[1749949386439,1.11389986,105840.0,105830.0,0.84858]
[1749949386687,1.13383035,105840.0,105830.0,0.84858]
[1749949386920,1.14047384,105840.0,105830.0,0.84858]
[1749949387346,1.12497236,105840.0,105830.0,0.84858]
[1749949387576,1.13383035,105840.0,105830.0,0.84858]
[1749949387790,1.12497236,105840.0,105830.0,0.84858]
[1749949387999,1.12275785,105840.0,105830.0,0.84858]
[1749949388208,1.14047384,105840.0,105830.0,0.84858]
[1749949388419,1.11389986,105840.0,105830.0,0.84858]
[1749949388640,1.12275785,105840.0,105830.0,0.6949]
[1749949388852,1.31611436,105840.0,105830.0,0.84858]
[1749949389068,1.32275796,105840.0,105830.0,0.84858]
[1749949389295,1.31389993,105840.0,105830.0,0.84858]
[1749949389514,1.34047386,105840.0,105830.0,0.84858]
[1749949389720,1.31611439,105840.0,105830.0,0.84858]
[1749949389956,1.32275801,105840.0,105830.0,0.84858]
[1749949390227,1.34047417,105840.0,105830.0,0.84858]
[1749949390444,1.34047442,105840.0,105830.0,0.84858]
[1749949390656,1.34047474,105840.0,105830.0,0.84858]
[1749949390866,1.33383107,105840.0,105830.0,0.84858]
[1749949391079,1.34047474,105840.0,105830.0,0.84858]
[1749949391291,1.36032861,105840.0,105830.0,0.84858]
[1749949391533,1.36918684,105840.0,105830.0,0.84858]
[1749949391760,1.42209367,105840.0,105830.0,0.84858]
[1749949391971,1.35368494,105840.0,105830.0,0.84858]
[1749949392190,1.36254317,105840.0,105830.0,0.84858]
[1749949392401,1.34261214,105840.0,105830.0,0.84858]
[1749949392617,1.36918683,105840.0,105830.0,0.84858]
[1749949393050,1.33596847,105840.0,105830.0,0.84858]
[1749949393257,1.36254317,105840.0,105830.0,0.84858]
[1749949393470,1.36032861,105840.0,105830.0,0.84858]
[1749949393686,1.35147037,105840.0,105830.0,0.55368]
[1749949393901,1.36918689,105840.0,105830.0,0.55368]
[1749949394128,1.36032865,105840.0,105830.0,0.55368]
[1749949394340,1.4132355,105840.0,105830.0,0.55368]
[1749949394555,1.36918692,105840.0,105830.0,0.55368]
[1749949394773,1.36032867,105840.0,105830.0,0.55368]
[1749949394980,1.36918692,105840.0,105830.0,0.4]
[1749949395187,1.36036378,105840.0,105830.0,0.55368]
[1749949395371,1.35149275,105840.0,105830.0,0.55368]
[1749949395654,1.3692348,105840.0,105830.0,0.55368]
[1749949395872,1.36256203,105840.0,105830.0,0.55368]
[1749949396086,1.36921042,105840.0,105830.0,0.55368]
[1749949396296,1.36256203,105840.0,105830.0,0.55368]
[1749949396476,1.35148138,105840.0,105830.0,0.55368]
[1749949396750,1.36921042,105840.0,105830.0,0.55368]
[1749949396961,1.36256203,105840.0,105830.0,0.55368]
[1749949397143,1.36921042,105840.0,105830.0,0.55368]
[1749949397563,1.3603459,105840.0,105830.0,0.55368]
[1749949397771,1.36921042,105840.0,105830.0,0.55368]
[1749949398000,1.3603459,105840.0,105830.0,0.55368]
[1749949398214,1.36921042,105840.0,105830.0,0.55368]
[1749949398574,1.33596847,105840.0,105830.0,0.55368]
[1749949398787,1.36256203,105840.0,105830.0,0.55368]
[1749949398990,0.97584196,105840.0,105830.0,0.55368]
[1749949399216,1.36256203,105840.0,105830.0,0.55368]
[1749949399440,1.35148138,105840.0,105830.0,0.55368]
[1749949399643,1.33066203,105840.0,105830.0,0.55368]
[1749949399990,1.30721042,105840.0,105830.0,0.55368]
[1749949400248,1.27396847,105840.0,105830.0,0.55368]
[1749949400462,1.30721042,105840.0,105830.0,0.55368]
[1749949400667,1.28283299,105840.0,105830.0,0.55368]
[1749949400858,1.30721042,105840.0,105830.0,0.55368]
[1749949401075,1.28061686,105840.0,105830.0,0.55368]
[1749949401290,1.30056203,105840.0,105830.0,0.55368]
[1749949401506,1.30721042,105840.0,105830.0,0.55368]
[1749949401721,1.30056203,105840.0,105830.0,0.55368]
[1749949401921,0.90719357,105840.0,105830.0,0.55368]
[1749949402123,1.30721042,105840.0,105830.0,0.55368]
[1749949402338,1.28283299,105840.0,105830.0,0.55368]
[1749949402541,1.30721041,105840.0,105830.0,0.55368]
[1749949402737,1.30056201,105840.0,105830.0,0.55368]
[1749949402949,1.30721041,105840.0,105830.0,0.55368]
[1749949403141,1.30721042,105840.0,105830.0,0.55368]
[1749949403559,1.28283299,105840.0,105830.0,0.4]
[1749949403772,1.73558532,105840.0,105830.0,0.4]
[1749949403981,1.82112138,105840.0,105830.0,0.4]
[1749949404184,1.82112202,105840.0,105830.0,0.4]
[1749949404400,2.1755289,105840.0,105830.0,0.39384807]
[1749949404612,2.17553265,105840.0,105830.0,0.38461962]
[1749949404821,2.17553301,105840.0,105830.0,0.38461962]
[1749949405026,2.17553281,105840.0,105830.0,0.38461962]
[1749949405237,2.15664721,105840.0,105830.0,0.2451398]
[1749949405442,2.08223452,105840.0,105830.0,0.2451398]
[1749949405651,2.14996398,105840.0,105830.0,0.2451398]
[1749949405862,2.15661435,105840.0,105830.0,0.2451398]
[1749949406067,2.14996424,105840.0,105830.0,0.2451398]
[1749949406272,2.14109738,105840.0,105830.0,0.2451398]
[1749949406482,2.14374756,105840.0,105830.0,0.2451398]
[1749949406636,2.15261458,105840.0,105830.0,0.2451398]
[1749949406839,2.14596441,105840.0,105830.0,0.2451398]
[1749949407043,2.1526146,105840.0,105830.0,0.2451398]
[1749949407470,2.14596441,105840.0,105830.0,0.2451398]
[1749949407645,2.1566146,105840.0,105830.0,0.2451398]
[1749949408442,1.99632441,105840.0,105830.0,0.2451398]
[1749949408650,2.14211375,105840.0,105830.0,0.2451398]
[1749949408847,2.12437991,105840.0,105830.0,0.2451398]
[1749949409045,2.17728662,105840.0,105830.0,0.2451398]
[1749949409250,2.12659642,105840.0,105830.0,0.2451398]
[1749949409774,2.12437973,105840.0,105830.0,0.2451398]
[1749949409995,2.11772962,105840.0,105830.0,0.2451398]
[1749949410196,2.12437975,105840.0,105830.0,0.2451398]
[1749949410411,2.11772963,105840.0,105830.0,0.2451398]
[1749949410665,2.12437975,105840.0,105830.0,0.2451398]
[1749949411240,2.02477975,105840.0,105830.0,0.2451398]
[1749949411983,2.0376848,105840.0,105830.0,0.2451398]
[1749949412332,2.1673426,105840.0,105830.0,0.2451398]
[1749949412532,2.1673426,105840.0,105830.0,0.10135434]
[1749949412745,2.1606931,105840.0,105830.0,0.08784394]
[1749949412972,2.16734382,105840.0,105830.0,0.08784394]
[1749949413194,2.16734382,105840.0,105780.0,0.33159794]
[1749949413195,0.44795853,105790.0,105780.0,0.33159794]
[1749949413414,0.94643685,105790.0,105780.0,0.33159794]
[1749949413642,0.95308823,105790.0,105780.0,0.33159794]
[1749949413874,0.94421998,105790.0,105780.0,0.33151038]
[1749949414078,0.56466203,105790.0,105780.0,0.13823038]
[1749949414459,0.94916241,105790.0,105780.0,0.29191038]
[1749949414651,0.94255824,105790.0,105780.0,0.29191038]
[1749949414857,0.95807832,105790.0,105780.0,0.29191038]
[1749949415065,0.96198035,105790.0,105780.0,0.13823038]
[1749949415228,1.51085549,105790.0,105780.0,0.07553038]
[1749949415428,1.53258036,105790.0,105780.0,0.07553038]
[1749949415629,0.19852505,105780.0,105770.0,2.14874]
[1749949415851,0.68813527,105780.0,105770.0,2.14874]
[1749949416255,0.68813527,105780.0,105770.0,1.99506]
[1749949416508,0.68813527,105780.0,105770.0,2.14874]
[1749949417140,0.68813527,105780.0,105770.0,2.14878]
[1749949417340,0.68813527,105780.0,105770.0,1.99506]
[1749949417567,0.68813527,105780.0,105770.0,2.14878]
[1749949417933,0.68813527,105780.0,105770.0,1.99806]
[1749949418100,0.68813527,105780.0,105770.0,2.15178]
[1749949418340,0.71585195,105780.0,105770.0,2.15178]
[1749949419067,0.71585195,105780.0,105770.0,2.14231207]
[1749949419513,0.32248349,105780.0,105770.0,2.19564414]
[1749949419726,0.32248349,105780.0,105770.0,2.18617621]
[1749949420147,0.32248349,105780.0,105770.0,2.17670828]
[1749949420566,0.32248349,105780.0,105770.0,2.16724035]
[1749949423790,0.3319368,105780.0,105770.0,2.76860692]
[1749949424024,0.57569504,105780.0,105770.0,2.81860692]
[1749949424242,0.57569504,105780.0,105770.0,2.80915272]
[1749949424469,0.57569504,105780.0,105770.0,2.81860701]
[1749949424706,0.38662339,105780.0,105770.0,2.82806103]
[1749949424930,0.39607562,105780.0,105770.0,2.83751488]
[1749949425150,0.40552902,105780.0,105770.0,2.83751488]
[1749949425594,0.57633829,105780.0,105770.0,2.87723515]
[1749949426054,0.58299425,105780.0,105770.0,2.87723515]
[1749949426500,0.38446902,105780.0,105770.0,2.886689]
[1749949427647,0.37781306,105780.0,105770.0,2.886689]
[1749949427876,0.38446902,105780.0,105770.0,2.49332054]
[1749949428104,0.44682943,105780.0,105770.0,2.886689]
[1749949428343,0.40279721,105780.0,105770.0,2.886689]
[1749949428572,0.39614126,105780.0,105770.0,2.886689]
[1749949428792,0.40279723,105780.0,105770.0,2.886689]
[1749949429014,0.39614126,105780.0,105770.0,2.886689]
[1749949429228,0.40279724,105780.0,105770.0,2.886689]
[1749949429448,0.58241591,105780.0,105770.0,2.87723515]
[1749949429664,0.57575995,105780.0,105770.0,2.87723515]
[1749949429885,0.58241592,105780.0,105770.0,2.68379515]
[1749949430102,0.56688534,105780.0,105770.0,2.87735515]
[1749949430316,0.58241598,105780.0,105770.0,2.87735515]
[1749949430524,0.58241596,105780.0,105770.0,2.87735515]
[1749949430744,0.56688534,105780.0,105770.0,2.87735515]
[1749949430963,0.58241594,105780.0,105770.0,2.87735515]
[1749949431185,0.61040939,105780.0,105770.0,2.87735515]
[1749949431405,0.60153476,105780.0,105770.0,2.87735515]
[1749949431617,0.60375342,105780.0,105770.0,2.87735515]
[1749949431841,0.61040941,105780.0,105770.0,2.87735515]
[1749949432290,0.41468178,105780.0,105770.0,2.886809]
[1749949432959,0.42133776,105780.0,105770.0,2.886809]
[1749949433172,0.41246312,105780.0,105770.0,2.886809]
[1749949433396,0.41468178,105780.0,105770.0,2.886809]
[1749949433610,0.41246312,105780.0,105770.0,2.886809]
[1749949433831,0.58542557,105780.0,105770.0,2.10324035]
[1749949434058,0.59150281,105780.0,105770.0,2.25716035]
[1749949434270,1.0722384,105780.0,105770.0,2.01352035]
[1749949434486,1.07223861,105780.0,105770.0,2.14456035]
[1749949434735,1.07223889,105780.0,105770.0,2.14456035]
[1749949434943,1.125146,105780.0,105770.0,2.10484035]
[1749949435162,1.06558239,105780.0,105770.0,2.10484035]
[1749949435379,0.67887079,105780.0,105770.0,2.13444035]
[1749949435812,0.67887079,105780.0,105770.0,2.16514035]
[1749949436079,0.67221393,105780.0,105770.0,2.16514035]
[1749949436301,0.67887079,105780.0,105770.0,2.16514035]
[1749949436521,0.67221393,105780.0,105770.0,2.16514035]
[1749949436731,0.67886643,105780.0,105770.0,2.16514035]
[1749949436942,0.67221393,105780.0,105770.0,2.16514035]
[1749949437393,0.67886643,105780.0,105770.0,2.16514035]
[1749949438007,0.67221393,105780.0,105770.0,2.16514035]
[1749949438217,0.67886642,105780.0,105770.0,2.16514035]
[1749949438868,0.67886623,105780.0,105770.0,2.16514035]
[1749949439079,0.67886617,105780.0,105770.0,2.16514035]
[1749949439293,0.67221393,105780.0,105770.0,2.16514035]
[1749949439507,0.67886632,105780.0,105770.0,2.16514035]
[1749949440453,0.67221393,105780.0,105770.0,2.16514035]
[1749949441134,0.67886628,105780.0,105770.0,2.16514035]
[1749949441427,0.67221393,105780.0,105770.0,2.16514035]
[1749949441630,0.67886614,105780.0,105770.0,2.16514035]
[1749949441841,0.67886617,105780.0,105770.0,2.16514035]
[1749949442946,0.67221393,105780.0,105770.0,2.16514035]
[1749949443363,0.67886617,105780.0,105770.0,2.16514035]
[1749949445261,0.67221393,105780.0,105770.0,2.16514035]
[1749949445477,0.67886617,105780.0,105770.0,2.16514035]
[1749949445944,0.67221393,105780.0,105770.0,2.16514035]
[1749949446412,0.67887053,105780.0,105770.0,2.16514035]
[1749949447917,0.67221393,105780.0,105770.0,2.16514035]
[1749949448308,0.67221393,105780.0,105770.0,2.20470035]
[1749949448309,0.67887053,105780.0,105770.0,2.20470035]
[1749949448824,0.67221393,105780.0,105770.0,2.20470035]
[1749949449069,0.67887053,105780.0,105770.0,2.20470035]
[1749949449491,0.67887054,105780.0,105770.0,2.20470035]
[1749949450130,0.67221393,105780.0,105770.0,2.20470035]
[1749949450342,0.67887054,105780.0,105770.0,2.20470035]
[1749949450763,0.67221393,105780.0,105770.0,2.20470035]
[1749949451210,0.67887054,105780.0,105770.0,2.20470035]
[1749949452123,0.67887053,105780.0,105770.0,2.20470035]
[1749949452436,0.67887054,105780.0,105770.0,2.20470035]
[1749949453889,0.67221393,105780.0,105770.0,2.20470035]
[1749949454096,0.67887054,105780.0,105770.0,2.20470035]
[1749949455367,0.67221393,105780.0,105770.0,2.20470035]
[1749949455578,0.67887054,105780.0,105770.0,2.20470035]
[1749949455998,0.67221393,105780.0,105770.0,2.20470035]
[1749949456205,0.67887054,105780.0,105770.0,2.20470035]
[1749949456412,0.67221393,105780.0,105770.0,2.20470035]
[1749949456619,0.67887054,105780.0,105770.0,2.20470035]
[1749949457045,0.67887054,105780.0,105770.0,2.86552068]
[1749949457046,0.39635293,105780.0,105770.0,2.86552068]
[1749949457252,0.40300907,105780.0,105770.0,2.86552068]
[1749949457484,0.40580642,105780.0,105770.0,2.86552068]
[1749949458094,0.41246242,105780.0,105770.0,2.86552068]
[1749949458301,0.41246244,105780.0,105770.0,2.86552068]
[1749949458509,0.41468103,105780.0,105770.0,2.86552068]
[1749949458717,0.38388996,105780.0,105770.0,3.15742068]
[1749949458926,0.3866874,105780.0,105770.0,3.15742068]
[1749949459131,0.38446877,105780.0,105770.0,3.16242068]
[1749949459343,0.38446878,105780.0,105770.0,3.16242068]
[1749949459548,0.37781279,105780.0,105770.0,3.16242068]
[1749949459752,0.39334328,105780.0,105770.0,3.16242068]
[1749949459953,0.39614084,105780.0,105770.0,3.16242068]
[1749949460157,0.40279677,105780.0,105770.0,3.16242068]
[1749949460369,0.39614085,105780.0,105770.0,3.16242068]
[1749949460569,0.3939222,105780.0,105770.0,3.16242068]
[1749949460981,0.38726628,105780.0,105770.0,3.16242068]
[1749949461184,0.40279675,105780.0,105770.0,3.16242068]
[1749949461385,0.38726628,105780.0,105770.0,3.16242068]
[1749949462016,0.37781279,105780.0,105770.0,3.16242068]
[1749949462216,0.36835939,105780.0,105770.0,3.16242068]
[1749949462864,0.01444191,105790.0,105780.0,0.1136]
[1749949463084,0.56240035,105790.0,105780.0,0.87126997]
[1749949463317,0.56903746,105790.0,105780.0,0.86890682]
[1749949463542,0.58070242,105790.0,105780.0,0.87835986]
[1749949463758,0.57788737,105790.0,105780.0,0.86890682]
[1749949464111,0.57788738,105790.0,105780.0,0.47553836]
[1749949464314,0.5690379,105790.0,105780.0,0.47553836]
[1749949464525,0.57788734,105790.0,105780.0,0.47653836]
[1749949464729,0.56903788,105790.0,105780.0,0.47653836]
[1749949464935,0.56240079,105790.0,105780.0,0.47653836]
[1749949465129,0.57788734,105790.0,105780.0,0.47653836]
[1749949465420,0.57125025,105790.0,105780.0,0.47653836]
[1749949465624,0.56903788,105790.0,105780.0,0.47653836]
[1749949465827,0.57125025,105790.0,105780.0,0.47653836]
[1749949466238,0.56903788,105790.0,105780.0,0.47653836]
[1749949466444,0.57791194,105790.0,105780.0,0.47653836]
[1749949466661,0.57127484,105790.0,105780.0,0.47653836]
[1749949467120,0.56905633,105790.0,105780.0,0.47653836]
[1749949467342,0.57793038,105790.0,105780.0,0.47653836]
[1749949467578,0.56847796,105790.0,105780.0,0.46708514]
[1749949468422,0.55902545,105790.0,105780.0,0.46708514]
[1749949469098,0.5501514,105790.0,105780.0,0.46708514]
[1749949469307,0.55902545,105790.0,105780.0,0.46708514]
[1749949469512,0.54349586,105790.0,105780.0,0.46708514]
[1749949469723,0.5501514,105790.0,105780.0,0.46708514]
[1749949469932,0.55902545,105790.0,105780.0,0.47653854]
[1749949470361,0.5501514,105790.0,105780.0,0.47653854]
[1749949470595,0.55902536,105790.0,105780.0,0.47653854]
[1749949470802,0.55902528,105790.0,105780.0,0.47653854]
[1749949471009,0.55902527,105790.0,105780.0,0.47653854]
[1749949471657,0.55015132,105790.0,105780.0,0.47653854]
[1749949471866,0.54291722,105790.0,105780.0,0.46708514]
[1749949472080,0.54957268,105790.0,105780.0,0.46708514]
[1749949472494,0.53404327,105790.0,105780.0,0.46708514]
[1749949472735,0.54957268,105790.0,105780.0,0.46708514]
[1749949473262,0.54291722,105790.0,105780.0,0.46708514]
[1749949473477,0.54069873,105790.0,105780.0,0.76198514]
[1749949473684,0.54957268,105790.0,105780.0,0.76198514]
[1749949474113,0.54069873,105790.0,105780.0,0.76198514]
[1749949474315,0.54957268,105790.0,105780.0,0.76198514]
[1749949474700,0.53404327,105790.0,105780.0,0.76198514]
[1749949474900,0.54957268,105790.0,105780.0,0.76198514]
[1749949475732,0.3705497,105790.0,105780.0,1.17426013]
[1749949475931,0.37276819,105790.0,105780.0,1.18371308]
[1749949476132,0.38222076,105790.0,105780.0,1.18371308]
[1749949476644,0.38887621,105790.0,105780.0,1.18371308]
[1749949476843,0.38000228,105790.0,105780.0,1.18371308]
[1749949477056,0.39167344,105790.0,105780.0,1.18371308]
[1749949477256,0.3983289,105790.0,105780.0,1.18371308]
[1749949477456,0.57850874,105790.0,105780.0,1.164807]
[1749949477656,0.57793044,105790.0,105780.0,0.78089185]
[1749949478044,0.57793045,105790.0,105780.0,0.78089185]
[1749949478261,0.571275,105790.0,105780.0,0.78089185]
[1749949478632,0.57793046,105790.0,105780.0,0.79034507]
[1749949479264,0.36331568,105790.0,105780.0,1.19316612]
[1749949479461,0.58738182,105790.0,105780.0,1.18371317]
[1749949479663,0.39832797,105790.0,105780.0,1.19316612]
[1749949480067,0.39167265,105790.0,105780.0,1.19316612]
[1749949480351,0.57185267,105790.0,105780.0,0.79034471]
[1749949480547,0.37334621,105790.0,105780.0,0.7997973]
[1749949480951,0.37334621,105790.0,105780.0,1.19316576]
[1749949481302,0.37334621,105790.0,105780.0,0.7997973]
[1749949481585,0.37334621,105790.0,105780.0,1.19316576]
[1749949481733,0.37334612,105790.0,105780.0,1.19316576]
[1749949482740,0.37334603,105790.0,105780.0,1.19316576]
[1749949483258,0.38279845,105790.0,105780.0,1.19316576]
[1749949484800,0.39225096,105790.0,105780.0,1.19316576]
[1749949490341,0.39225158,105790.0,105780.0,1.19316576]
[1749949491312,0.40112505,105790.0,105780.0,1.19316576]
[1749949491522,0.40778015,105790.0,105780.0,1.19316576]
[1749949491755,0.40778017,105790.0,105780.0,1.19316576]
[1749949492155,0.40778061,105790.0,105780.0,1.19316576]
[1749949492369,0.40778061,105790.0,105780.0,1.2158145]
[1749949492578,0.4011255,105790.0,105780.0,1.2158145]
[1749949492787,0.40778061,105790.0,105780.0,1.2158145]
[1749949493244,0.4011255,105790.0,105780.0,1.2158145]
[1749949493910,0.40778061,105790.0,105780.0,1.2158145]
[1749949494138,0.39225202,105790.0,105780.0,1.2158145]
[1749949494383,0.40778061,105790.0,105780.0,1.2158145]
[1749949494589,0.39225202,105790.0,105780.0,1.2158145]
[1749949495061,0.40778061,105790.0,105780.0,1.2158145]
[1749949495272,0.39832827,105790.0,105780.0,1.25587737]
[1749949495483,0.39832862,105790.0,105780.0,1.24268158]
[1749949495696,0.39832864,105790.0,105780.0,1.24268158]
[1749949495904,0.38945499,105790.0,105780.0,1.24268158]
[1749949496332,0.39832873,105790.0,105780.0,1.24268158]
[1749949496551,0.38945499,105790.0,105780.0,1.24268158]
[1749949496770,0.39832873,105790.0,105780.0,1.24268158]
[1749949497004,0.39167343,105790.0,105780.0,1.24268158]
[1749949497213,0.39832873,105790.0,105780.0,1.24268158]
[1749949497423,0.39832871,105790.0,105780.0,1.24268158]
[1749949497643,0.38887603,105790.0,105780.0,1.24268158]
[1749949497776,0.3800023,105790.0,105780.0,1.24268158]
[1749949498000,0.38887604,105790.0,105780.0,1.24268158]
[1749949498797,0.37334701,105790.0,105780.0,1.24268158]
[1749949499004,0.37054936,105790.0,105780.0,1.24268158]
[1749949499210,0.37942254,105790.0,105780.0,1.24268158]
[1749949499450,0.38000105,105790.0,105780.0,1.24268158]
[1749949499656,0.3888746,105790.0,105780.0,1.24268158]
[1749949499852,0.36109651,105790.0,105780.0,1.26533479]
[1749949500093,0.36109651,105790.0,105780.0,1.81890914]
[1749949500094,0.01164463,105790.0,105780.0,1.81890914]
[1749949500316,4.724e-05,105790.0,105780.0,1.99076884]
[1749949500533,4.724e-05,105790.0,105780.0,2.05678053]
[1749949500761,4.724e-05,105790.0,105780.0,1.96063131]
[1749949500978,4.724e-05,105790.0,105780.0,1.95963131]
[1749949501192,4.724e-05,105790.0,105780.0,1.96251131]
[1749949501616,4.724e-05,105790.0,105780.0,1.95951131]
[1749949501826,4.724e-05,105790.0,105780.0,1.96751131]
[1749949502511,4.724e-05,105790.0,105780.0,1.92979034]
[1749949503339,4.724e-05,105790.0,105780.0,1.437581]
[1749949503557,4.724e-05,105790.0,105780.0,1.53373022]
[1749949505774,4.724e-05,105790.0,105780.0,0.96840384]
[1749949505992,4.724e-05,105790.0,105780.0,1.36196306]
[1749949510244,4.724e-05,105790.0,105780.0,1.36216306]
[1749949511720,4.724e-05,105790.0,105780.0,1.40176306]
[1749949523915,4.724e-05,105790.0,105780.0,1.20812306]
[1749949524132,0.0094993,105790.0,105780.0,1.2416413]
[1749949524349,0.09160387,105790.0,105780.0,0.79579801]
[1749949524566,0.10105638,105790.0,105780.0,0.81979181]
[1749949524785,0.7358046,105790.0,105780.0,0.32555321]
[1749949525061,0.72296868,105790.0,105780.0,0.50575358]
[1749949525289,0.5260963,105790.0,105780.0,1.18768924]
[1749949525505,0.4072902,105790.0,105780.0,1.20659595]
[1749949525726,0.40446306,105790.0,105780.0,1.66036595]
[1749949525945,0.41169827,105790.0,105780.0,1.21758194]
[1749949526164,0.39617747,105790.0,105780.0,1.22262194]
[1749949526356,0.4116976,105790.0,105780.0,1.22262194]
[1749949526558,0.41391478,105790.0,105780.0,1.22262194]
[1749949526773,0.39617733,105790.0,105780.0,1.22262194]
[1749949526992,0.38730861,105790.0,105780.0,1.22262194]
[1749949527205,0.42056629,105790.0,105780.0,1.22262194]
[1749949527420,0.42056631,105790.0,105780.0,1.22262194]
[1749949527626,0.41391476,105790.0,105780.0,1.22262194]
[1749949527847,0.39617732,105790.0,105780.0,1.22262194]
[1749949528048,0.38730861,105790.0,105780.0,1.22262194]
[1749949528255,0.39617732,105790.0,105780.0,1.22262194]
[1749949528468,0.41169757,105790.0,105780.0,1.22262194]
[1749949528671,0.40282885,105790.0,105780.0,1.22262194]
[1749949528934,0.39617732,105790.0,105780.0,1.22262194]
[1749949529156,0.38730861,105790.0,105780.0,1.22262194]
[1749949529557,0.39396014,105790.0,105780.0,1.22262194]
[1749949529761,0.40282885,105790.0,105780.0,0.92772194]
[1749949530173,0.39396014,105790.0,105780.0,0.92772194]
[1749949530392,0.40282885,105790.0,105780.0,0.92772194]
[1749949531275,0.39617732,105790.0,105780.0,0.92772194]
[1749949531484,0.39337626,105790.0,105780.0,0.92772194]
[1749949532152,0.37727687,105790.0,105780.0,1.00716478]
[1749949532365,0.39338431,105790.0,105780.0,1.00716478]
[1749949532630,0.38672929,105790.0,105780.0,1.00716478]
[1749949532834,0.3933843,105790.0,105780.0,1.00716478]
[1749949533025,0.38451095,105790.0,105780.0,1.00716478]
[1749949533234,0.38451095,105790.0,105780.0,0.92772194]
[1749949533444,0.4028368,105790.0,105780.0,0.92772194]
[1749949533660,0.3961818,105790.0,105780.0,0.92772194]
[1749949533883,0.39396408,105790.0,105780.0,0.92772194]
[1749949534102,0.40283744,105790.0,105780.0,0.92772194]
[1749949534324,0.42058416,105790.0,105780.0,0.92772194]
[1749949534540,0.39396407,105790.0,105780.0,0.92772194]
[1749949534755,0.40225819,105790.0,105780.0,0.92772194]
[1749949534978,0.38672982,105790.0,105780.0,0.92772194]
[1749949535210,0.41113157,105790.0,105780.0,0.92772194]
[1749949535426,0.39338485,105790.0,105780.0,0.92772194]
[1749949535647,0.41113157,105790.0,105780.0,1.22262194]
[1749949535858,0.39338485,105790.0,105780.0,1.22262194]
[1749949536074,0.41113157,105790.0,105780.0,1.22262194]
[1749949536281,0.38672983,105790.0,105780.0,1.22262194]
[1749949536502,0.4022582,105790.0,105780.0,1.22262194]
[1749949536712,0.41113157,105790.0,105780.0,1.22262194]
[1749949537180,0.37785647,105790.0,105780.0,1.22262194]
[1749949537447,0.41113157,105790.0,105780.0,1.22262194]
[1749949537684,0.4022582,105790.0,105780.0,1.22262194]
[1749949537926,0.38451148,105790.0,105780.0,1.22262194]
[1749949538157,0.40447654,105790.0,105780.0,1.22262194]
[1749949538373,0.40225821,105790.0,105780.0,1.22262194]
[1749949538584,0.39338485,105790.0,105780.0,1.22262194]
[1749949538796,0.40447693,105790.0,105780.0,1.22262194]
[1749949539022,0.40447701,105790.0,105780.0,1.22262194]
[1749949539231,0.38673,105790.0,105780.0,1.22262194]
[1749949539459,0.40225869,105790.0,105780.0,1.22262194]
[1749949539671,0.41113222,105790.0,105780.0,1.22262194]
[1749949540091,0.40225869,105790.0,105780.0,1.22262194]
[1749949540352,0.41392966,105790.0,105780.0,0.77975793]
[1749949540570,0.63478754,105790.0,105780.0,1.00074273]
[1749949540822,0.65253496,105790.0,105780.0,1.20375595]
[1749949541046,0.44515489,105790.0,105780.0,1.2132089]
[1749949541273,0.43628124,105790.0,105780.0,1.2133289]
[1749949541486,0.45402856,105790.0,105780.0,1.2133289]
[1749949541702,0.42740758,105790.0,105780.0,1.2133289]
[1749949541914,0.43628124,105790.0,105780.0,1.2133289]